Cogmind - Beta 15 @@@ ROGUE MODE // 2025.05.13 @ 22:42:07 Player: Seye Result: Destroyed by YR-LTQ(R) with Subdweller Laser Performance ------------- Evolutions (0) 0 Regions Visited (2) 400 Robots Destroyed (38) 190 Value Destroyed (715) 715 Prototype IDs (13) 260 Alien Tech Used (0) 0 Bonus (0) 0 TOTAL SCORE: 1565 Bonus ------- None Cogmind --------- Core Integrity 0/250 Matter 9/300 Energy 228/250 System Corruption 0% Temperature Cool (30) Movement Rolling (150) Ox4 Location -10/Subcaves Parts ------- > --- POWER (1) -------- Ion Engine > --- PROPULSION (2) --- Subdweller Monowheel > --- UTILITY (2) ------ Huge Storage Unit > --- WEAPON (2) ------- Small Laser Subdweller Beam Cannon > --- INVENTORY (25) --- Makeshift Power Source Arachnoskeleton Subdweller Monowheel Propulsion Shielding Propulsion Shielding Light Armor Plating Light Armor Plating Light Armor Plating Light Armor Plating Small Laser Barrage Gun Barrage Gun Battle Cannon Grenade Launcher Grenade Launcher Grenade Launcher Grenade Launcher Peak State ------------ > --- POWER ------------ Ion Engine > --- PROPULSION ------- Wheel Subdweller Monowheel > --- UTILITY ---------- Huge Storage Unit > --- WEAPON ----------- Subdweller Beam Cannon Battle Cannon > --- INVENTORY -------- Makeshift Power Source Arachnoskeleton Subdweller Monowheel Propulsion Shielding Propulsion Shielding Light Armor Plating Light Armor Plating Light Armor Plating Light Armor Plating Small Laser Small Laser Barrage Gun Barrage Gun Grenade Launcher Grenade Launcher Grenade Launcher Grenade Launcher [Rating: 13] Favorites ----------- Power Ion Engine Engine Ion Engine Propulsion Hover Unit Wheel Wheel Hover Unit Hover Unit Utility Huge Storage Unit Device Seismic Detector Storage Huge Storage Unit Weapon Grenade Launcher Energy Gun Small Laser Energy Cannon Beam Cannon Ballistic Gun Light Assault Rifle Ballistic Cannon Battle Cannon Launcher Grenade Launcher Build | -11 -10 -10 ------- Run | Yrd Mat Sub Slots Evolved . | . . . Power . | . . . Propulsion . | . . . Utility . | . . . Weapon . | . . . Parts Attached 21 | 12 5 4 Power 2 | 1 . 1 Engine 2 | 1 . 1 Core . | . . . Reactor . | . . . Propulsion 9 | 6 2 1 Treads . | . . . Leg . | . . . Wheel 7 | 6 . 1 Hover 2 | . 2 . Flight . | . . . Utility 3 | 2 1 . Device 1 | 1 . . Storage 2 | 1 1 . Processor . | . . . Hackware . | . . . Protection . | . . . Artifact . | . . . Weapon 7 | 3 2 2 Energy Gun 2 | 2 . . Energy Cannon 2 | . 1 1 Ballistic Gun 1 | 1 . . Ballistic Cannon 1 | . . 1 Launcher 1 | . 1 . Special Weapon . | . . . Impact Weapon . | . . . Slashing Weapon . | . . . Piercing Weapon . | . . . Special Melee Weapon . | . . . Unidentified Prototypes . | . . . Parts Lost 5 | . . 5 Power 1 | . . 1 Propulsion 3 | . . 3 Utility . | . . . Weapon 1 | . . 1 Highest Loss Streak 3 | . . 3 To Critical Strikes . | . . . Average Backups 12 | 1 11 15 Power . | . 1 . Propulsion 1 | . 2 1 Utility 4 | . 4 6 Weapon 5 | . 4 6 Tool/Special . | . . . Unused Backups 14 | . . 14 Power 1 | . . 1 Propulsion 2 | . . 2 Utility 6 | . . 6 Weapon 5 | . . 5 Tool/Special . | . . . Average Slot Usage (%) 83 | . 87 78 Engine 14 | . 14 14 Wheel 9 | . 2 16 Hover 15 | . 25 5 Device 1 | . 2 . Storage 14 | . 14 14 Energy Gun 3 | . 7 . Energy Cannon 9 | . 13 6 Ballistic Cannon 3 | . . 7 Launcher 10 | . 7 13 Peak Build Rating 13 | 7 8 13 Average Rating 7 | 3 7 8 On Entrance 4 | . 7 7 Naked Turns . | . . . Heaviest Build 96 | 13 91 96 Greatest Support 32 | 32 20 30 Greatest Overweight (x) 15 | . 7 15 Average Overweight (x) 4 | . 5 4 Largest Inventory Capacity 25 | 8 25 25 Average Capacity 23 | 6 23 25 Most Carried 19 | 4 14 19 Average Carried 13 | . 11 15 Final Capacity 25 | 8 25 25 Final Carried 19 | 4 14 19 Class Distribution -------------------- 89% | Mutant 10% | Scavenger-Mutant Dominant Class ---------------- Mutant | -10/Materials Mutant | -10/Subcaves Resources | -11 -10 -10 ----------- Run | Yrd Mat Sub Matter Collected 748 | 353 152 243 Remotely . | . . . Salvage Created 971 | 119 681 171 Parts 72 | 13 48 11 Haulers Intercepted . | . . . Recyclers Shooed 2 | . 2 . Parts Field Recycled . | . . . Retrieved Matter . | . . . Parts Self-Destructed 18 | . . 18 Prevented . | . . . Kills | -11 -10 -10 ------- Run | Yrd Mat Sub Combat Hostiles Destroyed 22 | . 12 10 Cannons 11 | . 8 3 AOE 11 | . 4 7 Classes Destroyed 9 | 3 4 2 Worker 2 | 2 . . Builder 5 | . 5 . Tunneler 2 | 2 . . Recycler 4 | 1 3 . Watcher 3 | . 3 . Swarmer 9 | . 6 3 Grunt 6 | . 6 . Sentry 1 | . . 1 Subdweller 6 | . . 6 Best Kill Streak 5 | 2 5 3 Combat Bots Only 3 | . 3 3 Max Kills in Single Turn 3 | 1 3 2 Gunslinging . | . . . Exploded 3 | . 3 2 Melee . | . . . Uniques/NPCs Destroyed . | . . . Combat | -11 -10 -10 -------- Run | Yrd Mat Sub Hostile Shots Fired 75 | . 32 43 Missed 23 | . 7 16 Hits 52 | . 25 27 Projectile 52 | . 25 27 Critical Strikes 2 | . 1 1 Damage Taken 854 | . 251 603 Core 250 | . 135 115 Absorbed by Shields . | . . . Core Remaining (%) 100 | 100 . . Volleys Fired 148 | 49 56 43 Largest 2 | 1 2 2 Hottest 120 | 20 100 120 Shots Fired 221 | 49 95 77 Gun 85 | 49 32 4 Cannon 93 | . 52 41 Launcher 43 | . 11 32 Special . | . . . Kinetic 76 | 49 . 27 Thermal 102 | . 84 18 Explosive 43 | . 11 32 Electromagnetic . | . . . Robot Hit Streak 20 | 5 11 20 Robot Miss Streak 4 | 3 4 3 Penetration Max . | . . . Secondary Targets . | . . . Shots Hit Robots 115 | 33 52 30 Core Hits 55 | 11 29 15 Critical Kills . | . . . Critical Parts Destroyed 1 | 1 . . Critical Strikes 3 | 1 . 2 Destroy 1 | 1 . . Blast 2 | . . 2 Melee Attacks . | . . . Impact . | . . . Slashing . | . . . Piercing . | . . . Sneak Attacks . | . . . Combat Hostiles . | . . . Follow-up Attacks . | . . . Damage Inflicted 2433 | 257 1113 1063 Guns 488 | 257 187 44 Cannons 853 | . 563 290 Explosions 1077 | . 348 729 Melee . | . . . Ramming 15 | . 15 . Kinetic 448 | 257 . 191 Thermal 893 | . 750 143 Explosive 1077 | . 348 729 Electromagnetic . | . . . Impact . | . . . Slashing . | . . . Piercing . | . . . Highest Corruption . | . . . Average Corruption . | . . . Corruption Purged . | . . . Corruption Blocked . | . . . Overload Shots . | . . . Overflow Damage 15 | . 7 8 Projectiles 4 | . 4 . Explosions 11 | . 3 8 Melee . | . . . Knockbacks . | . . . Impact . | . . . Kinetic . | . . . Secondary . | . . . Self-Inflicted Damage 74 | . 7 67 Shots 5 | . . 5 Rammed 2 | . 2 . Targets Rammed 2 | . 2 . Kicked . | . . . Crushed . | . . . Highest Temperature 379 | . 379 299 Average Temperature 77 | . 76 93 Received Heat Transfer 489 | . 78 411 Effects 1 | . 1 . Energy Bleed 1 | . 1 . Siege Activations . | . . . Martial Activations . | . . . Shielding Activations . | . . . Robots Disrupted . | . . . Combat Hostiles . | . . . Robots Corrupted . | . . . Combat Hostiles . | . . . Parts Fried . | . . . Impact Corruptions . | . . . Robots Melted . | . . . Combat Hostiles . | . . . Parts Melted 3 | . 3 . Heat Transferred 1857 | . 1609 248 Parts Sabotaged . | . . . Parts Stolen . | . . . Parts Stripped . | . . . Power Chain Reactions . | . . . Alert | -11 -10 -10 ------- Run | Yrd Mat Sub Maximum Alert Level . | . . . Low Security (%) 100 | 100 100 . Level 1 . | . . . Level 2 . | . . . Level 3 . | . . . Level 4 . | . . . Level 5 . | . . . High Security . | . . . Max Security . | . . . Peak Influence 169 | 5 169 . Initial . | . . . Average 60 | 1 67 . Influence Increases 570 | 25 455 90 Destroy 0b10 Robot/C 320 | . 240 80 Destroy 0b10 Robot/NC 80 | 25 55 . Destroy Leader 66 | . 56 10 Successful Hack 5 | . 5 . Disable Machine 15 | . 15 . Destroy Structure 84 | . 84 . Influence Decreases 570 | 25 379 166 Entered New Map 37 | . . 37 Time Decay 523 | 25 379 119 Lost Part 10 | . . 10 Squads Dispatched 2 | . 2 . Investigation . | . . . Extermination . | . . . Reinforcement 2 | . 2 . Assault . | . . . Garrison . | . . . Intercept . | . . . Searches Triggered . | . . . Construction Impeded . | . . . Haulers Reinforced . | . . . Active Scanning Responses . | . . . Cargo Convoy Interrupts . | . . . Stealth | -11 -10 -10 --------- Run | Yrd Mat Sub Distress Signals 2 | . 2 . Communications Jammed . | . . . Distress Signals . | . . . Times Spotted 30 | . 19 11 Peak Tracking Total 4 | . 4 3 Tactical Retreats . | . . . Traps | -11 -10 -10 ------- Run | Yrd Mat Sub Traps Triggered 1 | . . 1 Indirectly . | . . . Trap Hack Attempts . | . . . Triggered . | . . . Disarmed . | . . . Reprogrammed . | . . . Reused . | . . . Traps Extracted . | . . . Installed . | . . . Triggered . | . . . Machines | -11 -10 -10 ---------- Run | Yrd Mat Sub Machines Disabled 2 | . 1 1 Max in Single Turn 1 | . 1 1 Machines Repaired . | . . . Machines Dismantled . | . . . Machines Sabotaged . | . . . Overloaded Fab Kills . | . . . Hacking | -11 -10 -10 --------- Run | Yrd Mat Sub Machines Accessed 5 | . 2 3 Terminals 2 | . 2 . Fabricators . | . . . Repair Stations . | . . . Recycling Units . | . . . Scanalyzers . | . . . Garrison Access . | . . . Total Hacks 13 | . 2 11 Successful 13 | . 2 11 Failed . | . . . Catastrophic . | . . . Database Lockouts . | . . . Manual . | . . . Terminals 2 | . 2 . Fabricators . | . . . Repair Stations . | . . . Recycling Units . | . . . Scanalyzers . | . . . Garrison Access . | . . . Terminal Hacks 13 | . 2 11 Record 8 | . . 8 Prototype ID Bank 1 | . 1 . Open Door 1 | . . 1 Zone Layout 1 | . 1 . Proto ID Catalog 1 | . . 1 Release Object 1 | . . 1 Fabricator Hacks . | . . . Repair Station Hacks . | . . . Recycling Unit Hacks . | . . . Scanalyzer . | . . . Garrison Access Hacks . | . . . Unauthorized Hacks . | . . . Terminals . | . . . Fabricators . | . . . Repair Stations . | . . . Recycling Units . | . . . Scanalyzers . | . . . Garrison Access . | . . . Data Cores Recovered . | . . . Used . | . . . Hacking Detections . | . . . Full Trace Events . | . . . Feedback Events . | . . . Feedback Blocked . | . . . Robot Schematics Acquired . | . . . Robots Built . | . . . Authchips . | . . . Time . | . . . Total Robot Build Rating . | . . . Part Schematics Acquired . | . . . Parts Built . | . . . Authchips . | . . . Time . | . . . Total Part Build Rating . | . . . Parts Repaired . | . . . Time . | . . . Parts Recycled . | . . . Recycled Matter . | . . . Retrieved Matter . | . . . Retrieved Components . | . . . Parts Scanalyzed . | . . . Part Schematics Acquired . | . . . Parts Damaged . | . . . Bothacking | -11 -10 -10 ------------ Run | Yrd Mat Sub Used RIF Installer . | . . . Robots Hacked . | . . . Non-combat . | . . . Combat . | . . . Robot Hacks Applied . | . . . Relay Couplers Released . | . . . Fabnet Peak Effective % . | . . . Robots Rewired . | . . . Allies Hacked . | . . . Hacks Repelled . | . . . Allies | -11 -10 -10 -------- Run | Yrd Mat Sub Total Allies . | . . . Largest Group . | . . . Highest-Rated Group . | . . . Highest-Rated Ally . | . . . Total Orders . | . . . Ally Attacks . | . . . Total Damage . | . . . Kills . | . . . Allies Corrupted . | . . . Allies Melted . | . . . Intel | -11 -10 -10 ------- Run | Yrd Mat Sub Active Infowar (turns) 408 | 70 338 . Seismic 408 | 70 338 . Robot Analysis Total . | . . . Derelict Logs Recovered 1 | . . 1 Drone Launches . | . . . Drone Recoveries . | . . . Exploration | -11 -10 -10 ------------- Run | Yrd Mat Sub Turns Passed 4347 | 232 2079 2036 Spaces Moved 1572 | 149 505 918 Core 15 | 15 . . Treads . | . . . Legs . | . . . Wheels 1079 | 134 105 840 Hover 478 | . 400 78 Flight . | . . . Fastest Speed 50 | 50 80 131 Average Speed 245 | 81 368 205 Slowest Speed 960 | 100 476 960 Overloaded Moves . | . . . Propulsion Burnouts . | . . . Robots Hopped . | . . . Potential Cave-ins . | . . . Cave-ins Triggered . | . . . Exploration Rate (%) 42 | 6 88 34 Regions Visited 2 Branch Regions 1 Pre-discovered Areas 1 | . . 1 Known Exits Taken . | . . . Unknown Exits Taken 2 | 1 1 . Scrap Searched 7 | . . 7 Spaces Dug . | . . . Terrain Destroyed 275 | . 106 169 Melee . | . . . Projectile 2 | . . 2 AOE 273 | . 106 167 Terrain Rammed . | . . . Walls Destroyed . | . . . Machines Disabled . | . . . Actions | -11 -10 -10 --------- Run | Yrd Mat Sub Total 1834 | 215 626 993 Wait 58 | . 42 16 Move 1570 | 148 504 918 Hop . | . . . Pick Up 21 | 4 10 7 Fast Attach 11 | 7 3 1 Attach 3 | . . 3 Detach 1 | . 1 . Swap 11 | 5 3 3 Drop 8 | 2 5 1 Fire 148 | 49 56 43 Melee . | . . . Ram 2 | . 2 . Kick . | . . . Crush . | . . . Escape Stasis . | . . . Rewire . | . . . Trap . | . . . Miscellaneous 1 | . . 1 Route ------- -11/Scrapyard -10/Materials (discovered 5 exits: [*Mat x3] / [*Min] / *Sub) -10/Subcaves History --------- Turn | Location | Event 40 | -11/Scrapyard | Discovered new exit (range 15) 233 | -11/Scrapyard | Entered Materials 306 | -10/Materials | Build established: Scavenger-Mutant 773 | -10/Materials | Build established: Mutant 899 | -10/Materials | Discovered new exit (range 12) 1281 | -10/Materials | Discovered new exit (range 11) 1621 | -10/Materials | Core integrity fell below 50% 1700 | -10/Materials | Discovered new exit (range 6) 1969 | -10/Materials | Discovered new exit (range 7) 2284 | -10/Materials | Discovered new exit (range 6) 2312 | -10/Materials | Entered Subcaves 2930 | -10/Subcaves | Shifting Twisted Machinery released Battle Cannon 3127 | -10/Subcaves | Shifting Twisted Machinery released Riot Gun 3136 | -10/Subcaves | Shifting Twisted Machinery released Mak. Thermal Plating 3209 | -10/Subcaves | Disturbed a concealed Subdweller 3243 | -10/Subcaves | Lost 3 parts (1p1n1w) 3408 | -10/Subcaves | Core integrity fell below 20% 3625 | -10/Subcaves | Visited 4L-MR0's lab 3668 | -10/Subcaves | Found Arachnoskeleton 3800 | -10/Subcaves | Released subatomizers from SUBCON Basin 4261 | -10/Subcaves | Shifting Twisted Machinery released Sub. Power Source 4348 | -10/Subcaves | Destroyed by YR-LTQ(R) with Subdweller Laser Last Messages --------------- Released subatomizers from SUBCON Basin. The unstable cave ceiling collapses. T0-9F9(R): "OHNO!" Sub. Power Source falls loose from the Twisted Machinery. Destroyed Scrap Shield. The unstable cave ceiling collapses. T0-9F9(R) destroyed. Subatomizers dissect the Sub. Laser. Acquired 17 matter. The unstable cave ceiling collapses. SZ-MUK(R) suffers critical hit (Blast). Destroyed Sub. Power Source. SZ-MUK(R) destroyed. The unstable cave ceiling collapses. Scrap Shield Fragment crushed. Subatomizers dissect the Sub. Machine Gun. Subatomizers dissect the Sub. Optics. Acquired 13 matter. Wheel destroyed. Map ----- +----------------------------------------------------+ | ############ #??????????????????????????????????? | | ???????????# ##??????????????????????????????????? | | ####?????### #??????????????????????????????????? | | #????##"" #??????????????????????????????????? | | # #?#####"""###??????????????????????????????????? | | ###"""""""##???????????????????????????????????? | | #" """ ""#???????????????????????????????????? | | ## " ""#???????????????????????????????????? | | ""#???????????????????????????????????? | | ""#???????????????????????????????????? | | "## """#???????????????????????????????????? | | #### ## ""#???????????????????????????????????? | | ???##### ##???????????????????????????????????? | | ??????## # #???????????????????????????????????? | | ??????# & ######??????????????????????????????? | | ??????# & # ####???????????????????????????? | | ??????##" [ !# & #???????????????????????????? | | ??????##* & #???????????????????????????? | | ??????# &[ # #####???????????????????????? | | ??????## " ### #???????????????????????? | | ???????# ### ###" ##??????#???????????????? | | ???????# #?## #" "" ###?? #???????????????? | | ???????# #####?## """""" ## ##???????????????? | | ???????# ##????## "" "" " " #???????????????? | | ???????##??????#"""" "" ## ###???????????????? | | ???????????????## " ####@"##????????????????????? | | ????????????????## " #?# R" #????????????????????? | | ?????????????????##" ?##%""#????????????????????? | | ??????????????????## #? ""##????????????????????? | | ???????????????????## #?# ?????????????????????? | | ?????????????????????##? ????????????????????? | | ????????????????????????# % ????????????????????? | | ????????????????????????# %????????????????????? | | ????????????????????????# ???????????????????? | | ????????????????????????? % %???????????????????? | | ????????????????????????? ????????????????????? | | ????????????????????????? ????????????????????? | | ????????????????????????? ###????????????????????? | | ????????????????????????? ???????????????????????? | | ?????????????????????????????????????????????????? | | ?????????????????????????????????????????????????? | | ?????????????????????????????????????????????????? | | ?????????????????????????????????????????????????? | | ?????????????????????????????????????????????????? | | ?????????????????????????????????????????????????? | | ?????????????????????????????????????????????????? | | ?????????????????????????????????????????????????? | | ?????????????????????????????????????????????????? | | ?????????????????????????????????????????????????? | | ?????????????????????????????????????????????????? | +----------------------------------------------------+ Best States ------------- Heat Dissipation 25 Energy Generation 10 Energy Capacity 250 Matter Stores 300 Matter Capacity 300 Sight Range 16 Terrain Scan Density 10 Evasion (%) 44 Item Schematics ----------------- None Robot Schematics ------------------ None Fabricated ------------ Nothing Repaired ---------- Nothing Alien Tech Used ----------------- None Achievements -------------- None Challenges ------------ None Game ------ Seed ExplosiveGrapheneBiocell Manual? 0 Play Time 00:37:21 Cumulative 5.5 hours Start 2025.05.13 @ 16:14:42 End 2025.05.13 @ 22:42:07 Sessions 1 Manual Loads 0 Difficulty Rogue Special Mode None Game No. 4 Rogue 4 Adventurer 0 Explorer 0 Win Type - Total 0 Types 0/0/0/0/0/0/0/0/0/0 Lore% 7 Gallery% 8 Achievement% 13 Wizard Run 0 Options --------- Layout 1 ASCII 0 Keyboard 0 Movement Arrows Keybinds 0 Fullscreen 1 Font 32/SmallcapsGlow Map View 50x35 Zoom Use 0% Tactical HUD 0 Map Filters NONE Filters NONE Steam 0 RUN: 2bf42af4-a2f1-41cd-b88d-baef817feae6